[Event "Early-Titled-Tuesday-Blitz-October-10-2023"]
[Site "Chess.com"]
[Date "2023.10.10"]
[Round "1"]
[White "aqibjbutt"]
[Black "Fan_Of_Chucky"]
[Result "1-0"]
[WhiteElo "1966"]
[BlackElo "2517"]
[TimeControl "180+1"]
[EndTime "8:07:39 PDT"]
[Termination "aqibjbutt won on time"]

1. d4 {[%clk 0:03:00.5]} 1... Nf6 {[%clk 0:02:59.1]} 2. Nf3 {[%clk 0:03:00.9]}
2... c5 {[%clk 0:02:59.1]} 3. e3 {[%clk 0:03:00.6]} 3... g6 {[%clk 0:02:59.3]}
4. Be2 {[%clk 0:03:00.7]} 4... cxd4 {[%clk 0:02:58.8]} 5. exd4 {[%clk
0:03:00.4]} 5... Bg7 {[%clk 0:02:59.7]} 6. O-O {[%clk 0:03:00.4]} 6... d5 {[%clk
0:03:00.5]} 7. c3 {[%clk 0:02:59.6]} 7... O-O {[%clk 0:03:00.8]} 8. Bf4 {[%clk
0:02:58.4]} 8... Nc6 {[%clk 0:03:00.2]} 9. h3 {[%clk 0:02:57.8]} 9... Ne4 {[%clk
0:02:54.3]} 10. Nbd2 {[%clk 0:02:56.2]} 10... Bf5 {[%clk 0:02:45.4]} 11. Re1
{[%clk 0:02:54.3]} 11... Qb6 {[%clk 0:02:39.2]} 12. Qb3 {[%clk 0:02:52.4]} 12...
Rfd8 {[%clk 0:02:16.9]} 13. Qxb6 {[%clk 0:02:47.1]} 13... axb6 {[%clk
0:02:17.8]} 14. Bc7 {[%clk 0:02:45.1]} 14... Rdc8 {[%clk 0:02:12.7]} 15. Bxb6
{[%clk 0:02:44.7]} 15... e5 {[%clk 0:02:02.1]} 16. dxe5 {[%clk 0:02:40.7]} 16...
Nxe5 {[%clk 0:02:03]} 17. Bd4 {[%clk 0:02:32.4]} 17... Nxf3+ {[%clk 0:01:48.3]}
18. Nxf3 {[%clk 0:02:33.3]} 18... Ra5 {[%clk 0:01:43.1]} 19. Bxg7 {[%clk
0:02:30.9]} 19... Kxg7 {[%clk 0:01:43.5]} 20. Nd4 {[%clk 0:02:22.5]} 20... Kf6
{[%clk 0:01:26.8]} 21. Nxf5 {[%clk 0:02:20.9]} 21... Kxf5 {[%clk 0:01:27.7]} 22.
Bd3 {[%clk 0:02:21.3]} 22... Kf4 {[%clk 0:01:02.2]} 23. g3+ {[%clk 0:02:16.2]}
23... Nxg3 {[%clk 0:01:01.3]} 24. fxg3+ {[%clk 0:02:15.7]} 24... Kxg3 {[%clk
0:01:02.2]} 25. Re3+ {[%clk 0:02:11.4]} 25... Kf4 {[%clk 0:01:02.7]} 26. Re7
{[%clk 0:02:00.9]} 26... f5 {[%clk 0:00:59.2]} 27. Rxb7 {[%clk 0:01:55.1]} 27...
h5 {[%clk 0:00:59.3]} 28. a3 {[%clk 0:01:45.7]} 28... Kg3 {[%clk 0:00:39.3]} 29.
Rg7 {[%clk 0:01:38.2]} 29... Rc6 {[%clk 0:00:38.1]} 30. Bf1 {[%clk 0:01:24.5]}
30... f4 {[%clk 0:00:32.7]} 31. Re1 {[%clk 0:01:19.6]} 31... Ra8 {[%clk
0:00:29.5]} 32. Re5 {[%clk 0:01:18.3]} 32... Rb8 {[%clk 0:00:24.6]} 33. Rg5+
{[%clk 0:01:14.3]} 33... Kh4 {[%clk 0:00:25.2]} 34. R7xg6 {[%clk 0:01:13.7]}
34... Rxg6 {[%clk 0:00:25.7]} 35. Rxg6 {[%clk 0:01:14.4]} 35... Rxb2 {[%clk
0:00:26.6]} 36. a4 {[%clk 0:01:09]} 36... Ra2 {[%clk 0:00:23.6]} 37. Ra6 {[%clk
0:01:07.2]} 37... f3 {[%clk 0:00:20.6]} 38. Rf6 {[%clk 0:00:58.8]} 38... Kg3
{[%clk 0:00:16.3]} 39. Rg6+ {[%clk 0:00:58.6]} 39... Kh4 {[%clk 0:00:16.5]} 40.
Rd6 {[%clk 0:00:53.4]} 40... Rxa4 {[%clk 0:00:05.2]} 41. Rxd5 {[%clk 0:00:53]}
41... Ra2 {[%clk 0:00:04.2]} 42. Rd4+ {[%clk 0:00:52.7]} 42... Kg3 {[%clk
0:00:04.4]} 43. Rd1 {[%clk 0:00:50.8]} 43... Rh2 {[%clk 0:00:03]} 44. Rd3 {[%clk
0:00:49.1]} 44... Ra2 {[%clk 0:00:03.6]} 45. c4 {[%clk 0:00:47.4]} 45... Ra1
{[%clk 0:00:03.9]} 46. Rc3 {[%clk 0:00:45.7]} 46... Re1 {[%clk 0:00:04]} 47. Rc2
{[%clk 0:00:43.7]} 47... Rc1 {[%clk 0:00:03.5]} 48. Rxc1 {[%clk 0:00:43.6]} 1-0

[Event "Early-Titled-Tuesday-Blitz-October-10-2023"]
[Site "Chess.com"]
[Date "2023.10.10"]
[Round "1"]
[White "deribas12345"]
[Black "AnaKuchava"]
[Result "1-0"]
[WhiteElo "2588"]
[BlackElo "2242"]
[TimeControl "180+1"]
[EndTime "8:07:42 PDT"]
[Termination "deribas12345 won on time"]

1. d4 {[%clk 0:02:59.2]} 1... d5 {[%clk 0:02:58.5]} 2. c4 {[%clk 0:02:58.9]}
2... e6 {[%clk 0:02:58.2]} 3. Nc3 {[%clk 0:02:58]} 3... Be7 {[%clk 0:02:49.5]}
4. e4 {[%clk 0:02:56.5]} 4... dxe4 {[%clk 0:02:48.7]} 5. Nxe4 {[%clk 0:02:57.4]}
5... Nf6 {[%clk 0:02:48.3]} 6. Nxf6+ {[%clk 0:02:55.9]} 6... Bxf6 {[%clk
0:02:40.4]} 7. Nf3 {[%clk 0:02:56.8]} 7... O-O {[%clk 0:02:39.8]} 8. Be2 {[%clk
0:02:56.3]} 8... b6 {[%clk 0:02:39.2]} 9. O-O {[%clk 0:02:52.9]} 9... Bb7 {[%clk
0:02:37.9]} 10. Be3 {[%clk 0:02:53]} 10... Nd7 {[%clk 0:02:32.6]} 11. Qd2 {[%clk
0:02:51.3]} 11... Qe7 {[%clk 0:02:24.9]} 12. Rfd1 {[%clk 0:02:46.1]} 12... Rfd8
{[%clk 0:02:23.8]} 13. a3 {[%clk 0:02:41.5]} 13... c5 {[%clk 0:02:19.9]} 14.
Rac1 {[%clk 0:01:56]} 14... Rac8 {[%clk 0:02:18.1]} 15. d5 {[%clk 0:01:48]}
15... exd5 {[%clk 0:02:13.8]} 16. cxd5 {[%clk 0:01:48.1]} 16... Ne5 {[%clk
0:02:13.2]} 17. d6 {[%clk 0:01:40]} 17... Qe6 {[%clk 0:01:59.6]} 18. Nxe5 {[%clk
0:01:36.5]} 18... Bxe5 {[%clk 0:01:34.4]} 19. Bc4 {[%clk 0:01:18.9]} 19... Qxd6
{[%clk 0:01:12.9]} 20. Qxd6 {[%clk 0:01:13.5]} 20... Rxd6 {[%clk 0:00:58]} 21.
Rxd6 {[%clk 0:01:13]} 21... Bxd6 {[%clk 0:00:58.9]} 22. Rd1 {[%clk 0:01:13]}
22... Rd8 {[%clk 0:00:50.8]} 23. g3 {[%clk 0:01:11.6]} 23... Be7 {[%clk
0:00:42.2]} 24. Re1 {[%clk 0:01:09.6]} 24... Bf6 {[%clk 0:00:27.4]} 25. b4
{[%clk 0:01:06.8]} 25... cxb4 {[%clk 0:00:24.2]} 26. axb4 {[%clk 0:01:07.7]}
26... Bc3 {[%clk 0:00:23.3]} 27. Rc1 {[%clk 0:01:07]} 27... Bxb4 {[%clk
0:00:23]} 28. Bxf7+ {[%clk 0:01:03.7]} 28... Kxf7 {[%clk 0:00:20.1]} 29. Rc7+
{[%clk 0:01:03.7]} 29... Ke6 {[%clk 0:00:19.4]} 30. Rxb7 {[%clk 0:01:04.3]}
30... Rd7 {[%clk 0:00:20]} 31. Rb8 {[%clk 0:01:01.8]} 31... Rc7 {[%clk 0:00:12]}
32. h4 {[%clk 0:00:56.8]} 32... Bd6 {[%clk 0:00:11.6]} 33. Re8+ {[%clk
0:00:53.7]} 33... Re7 {[%clk 0:00:10.7]} 34. Rd8 {[%clk 0:00:51.3]} 34... Kd5
{[%clk 0:00:11.3]} 35. Bf4 {[%clk 0:00:50.2]} 35... Re6 {[%clk 0:00:11.8]} 36.
Rd7 {[%clk 0:00:49.2]} 36... Kc6 {[%clk 0:00:11.3]} 37. Rxa7 {[%clk 0:00:43.9]}
37... Bxf4 {[%clk 0:00:11.1]} 38. gxf4 {[%clk 0:00:44.8]} 38... Rg6+ {[%clk
0:00:10.9]} 39. Kf1 {[%clk 0:00:43.9]} 39... Rg4 {[%clk 0:00:10.9]} 40. h5
{[%clk 0:00:42.6]} 40... h6 {[%clk 0:00:09.2]} 41. Ke2 {[%clk 0:00:37.6]} 41...
b5 {[%clk 0:00:08.6]} 42. Kf3 {[%clk 0:00:36.8]} 42... Rh4 {[%clk 0:00:08.9]}
43. Rxg7 {[%clk 0:00:29.9]} 43... Rxh5 {[%clk 0:00:09.4]} 44. Kg4 {[%clk
0:00:30.2]} 44... Rc5 {[%clk 0:00:09]} 45. f5 {[%clk 0:00:28.9]} 45... b4 {[%clk
0:00:08.7]} 46. f6 {[%clk 0:00:28.9]} 46... Rc4+ {[%clk 0:00:06.7]} 47. f4
{[%clk 0:00:28.6]} 47... Kd6 {[%clk 0:00:03.2]} 48. Kf5 {[%clk 0:00:24.8]} 48...
Rc5+ {[%clk 0:00:02.2]} 49. Kg6 {[%clk 0:00:24.9]} 49... Rc8 {[%clk 0:00:01.7]}
50. Rb7 {[%clk 0:00:23.3]} 1-0

[Event "Early-Titled-Tuesday-Blitz-October-10-2023"]
[Site "Chess.com"]
[Date "2023.10.10"]
[Round "1"]
[White "Fh2411"]
[Black "valemava"]
[Result "0-1"]
[WhiteElo "2572"]
[BlackElo "2270"]
[TimeControl "180+1"]
[EndTime "8:07:45 PDT"]
[Termination "valemava won on time"]

1. d4 {[%clk 0:03:00.5]} 1... c6 {[%clk 0:02:54.6]} 2. c4 {[%clk 0:02:57]} 2...
b5 {[%clk 0:02:54]} 3. Nd2 {[%clk 0:02:40.8]} 3... bxc4 {[%clk 0:02:52]} 4. Nxc4
{[%clk 0:02:41.7]} 4... Ba6 {[%clk 0:02:51.5]} 5. Qc2 {[%clk 0:02:35.7]} 5...
Nf6 {[%clk 0:02:42.6]} 6. Nf3 {[%clk 0:02:30.1]} 6... e6 {[%clk 0:02:40.1]} 7.
Bd2 {[%clk 0:02:29.8]} 7... Be7 {[%clk 0:02:36]} 8. e4 {[%clk 0:02:22.2]} 8...
d5 {[%clk 0:02:28.5]} 9. Ba5 {[%clk 0:02:10.7]} 9... Qd7 {[%clk 0:02:15.1]} 10.
Nce5 {[%clk 0:01:51.6]} 10... Qb7 {[%clk 0:02:14.6]} 11. O-O-O {[%clk
0:01:26.4]} 11... O-O {[%clk 0:02:05.3]} 12. exd5 {[%clk 0:01:18.4]} 12... cxd5
{[%clk 0:02:04.1]} 13. Kb1 {[%clk 0:01:18.7]} 13... Rc8 {[%clk 0:02:02.3]} 14.
Qb3 {[%clk 0:01:13.7]} 14... Qxb3 {[%clk 0:01:55.2]} 15. axb3 {[%clk 0:01:14.6]}
15... Bxf1 {[%clk 0:01:51.3]} 16. Rhxf1 {[%clk 0:01:13.9]} 16... Nc6 {[%clk
0:01:51.4]} 17. Bc3 {[%clk 0:01:04.6]} 17... a5 {[%clk 0:01:44.4]} 18. Nxc6
{[%clk 0:00:49.6]} 18... Rxc6 {[%clk 0:01:45.3]} 19. Ne5 {[%clk 0:00:49.8]}
19... Rb6 {[%clk 0:01:41.9]} 20. Kc2 {[%clk 0:00:50.1]} 20... Bb4 {[%clk
0:01:28.9]} 21. f3 {[%clk 0:00:47.1]} 21... Rc8 {[%clk 0:01:25.9]} 22. Rd3
{[%clk 0:00:47.1]} 22... Kf8 {[%clk 0:01:24.3]} 23. g4 {[%clk 0:00:42]} 23...
Ke7 {[%clk 0:01:23.4]} 24. h4 {[%clk 0:00:38.7]} 24... Nd7 {[%clk 0:01:21.1]}
25. Nxd7 {[%clk 0:00:38.9]} 25... Kxd7 {[%clk 0:01:20.7]} 26. g5 {[%clk
0:00:37]} 26... g6 {[%clk 0:01:19.4]} 27. h5 {[%clk 0:00:34.4]} 27... a4 {[%clk
0:01:13.8]} 28. bxa4 {[%clk 0:00:33.6]} 28... Ra6 {[%clk 0:00:54.7]} 29. Kb3
{[%clk 0:00:25.8]} 29... Be7 {[%clk 0:00:52.4]} 30. f4 {[%clk 0:00:22.3]} 30...
Rb8+ {[%clk 0:00:52.5]} 31. Kc2 {[%clk 0:00:21.6]} 31... Rxa4 {[%clk 0:00:51.4]}
32. Rh1 {[%clk 0:00:20.7]} 32... Ra2 {[%clk 0:00:48]} 33. Rdd1 {[%clk
0:00:16.8]} 33... Bb4 {[%clk 0:00:43.2]} 34. Rb1 {[%clk 0:00:12.9]} 34... Ra7
{[%clk 0:00:38.5]} 35. Kd3 {[%clk 0:00:12.3]} 35... Rab7 {[%clk 0:00:36.8]} 36.
Ra1 {[%clk 0:00:10.8]} 36... Bd6 {[%clk 0:00:33.3]} 37. Raf1 {[%clk 0:00:09.2]}
37... Ra8 {[%clk 0:00:31]} 38. hxg6 {[%clk 0:00:07.6]} 38... hxg6 {[%clk
0:00:30.3]} 39. Rh7 {[%clk 0:00:08.3]} 39... Kc6 {[%clk 0:00:30.5]} 40. Rc1
{[%clk 0:00:06.9]} 40... Kb5 {[%clk 0:00:27.1]} 41. Rf1 {[%clk 0:00:07]} 41...
Bb4 {[%clk 0:00:25]} 42. Re1 {[%clk 0:00:05.5]} 42... Rc7 {[%clk 0:00:21.8]} 43.
Rxe6 {[%clk 0:00:05.2]} 43... Bxc3 {[%clk 0:00:20.5]} 44. bxc3 {[%clk
0:00:03.9]} 44... Ra3 {[%clk 0:00:20.6]} 45. Rd6 {[%clk 0:00:04.1]} 45... Rcxc3+
{[%clk 0:00:20.6]} 46. Kd2 {[%clk 0:00:04.3]} 46... Rf3 {[%clk 0:00:18.1]} 47.
Rxd5+ {[%clk 0:00:03.6]} 47... Kc4 {[%clk 0:00:18.4]} 48. Rd7 {[%clk 0:00:02.9]}
48... Ra2+ {[%clk 0:00:18.5]} 49. Ke1 {[%clk 0:00:02.8]} 49... Kd3 {[%clk
0:00:17.9]} 0-1

[Event "Early-Titled-Tuesday-Blitz-October-10-2023"]
[Site "Chess.com"]
[Date "2023.10.10"]
[Round "1"]
[White "kingapolak"]
[Black "ErikRonka"]
[Result "1-0"]
[WhiteElo "2038"]
[BlackElo "2519"]
[TimeControl "180+1"]
[EndTime "8:07:47 PDT"]
[Termination "kingapolak won by checkmate"]

1. e4 {[%clk 0:02:57.6]} 1... c6 {[%clk 0:02:58.1]} 2. d4 {[%clk 0:02:56.7]}
2... d5 {[%clk 0:02:56.4]} 3. Nc3 {[%clk 0:02:56.1]} 3... dxe4 {[%clk 0:02:56]}
4. Nxe4 {[%clk 0:02:55.6]} 4... Bf5 {[%clk 0:02:56.6]} 5. Ng3 {[%clk 0:02:55.6]}
5... Bg6 {[%clk 0:02:56.4]} 6. h4 {[%clk 0:02:56.1]} 6... h6 {[%clk 0:02:56.4]}
7. Nf3 {[%clk 0:02:54.6]} 7... Nd7 {[%clk 0:02:56.4]} 8. h5 {[%clk 0:02:54.5]}
8... Bh7 {[%clk 0:02:57]} 9. Bd3 {[%clk 0:02:53.7]} 9... Bxd3 {[%clk 0:02:57.3]}
10. Qxd3 {[%clk 0:02:54.5]} 10... e6 {[%clk 0:02:57.9]} 11. Bf4 {[%clk
0:02:50.9]} 11... Qa5+ {[%clk 0:02:56.1]} 12. Bd2 {[%clk 0:02:50.7]} 12... Bb4
{[%clk 0:02:56.4]} 13. c3 {[%clk 0:02:26.6]} 13... Be7 {[%clk 0:02:55.7]} 14.
Qe2 {[%clk 0:02:26.2]} 14... Ngf6 {[%clk 0:02:51.7]} 15. a3 {[%clk 0:02:07.4]}
15... O-O {[%clk 0:02:46.2]} 16. c4 {[%clk 0:02:03.4]} 16... Qc7 {[%clk
0:02:43.8]} 17. O-O {[%clk 0:02:00.1]} 17... Rfe8 {[%clk 0:02:38.7]} 18. Ne5
{[%clk 0:02:00]} 18... c5 {[%clk 0:02:33.1]} 19. Bc3 {[%clk 0:01:54.7]} 19...
Rad8 {[%clk 0:02:19.8]} 20. Rad1 {[%clk 0:01:49.8]} 20... Bf8 {[%clk 0:01:22.7]}
21. Rfe1 {[%clk 0:01:46.7]} 21... Rc8 {[%clk 0:01:09.2]} 22. Rc1 {[%clk
0:01:32.3]} 22... cxd4 {[%clk 0:01:06.6]} 23. Bxd4 {[%clk 0:01:32.1]} 23... Bc5
{[%clk 0:01:07.1]} 24. Bxc5 {[%clk 0:01:21.7]} 24... Nxc5 {[%clk 0:01:07.9]} 25.
b4 {[%clk 0:01:10.7]} 25... Ncd7 {[%clk 0:01:04.5]} 26. Nd3 {[%clk 0:00:50.3]}
26... b6 {[%clk 0:01:02.7]} 27. Red1 {[%clk 0:00:45.1]} 27... Red8 {[%clk
0:01:01.4]} 28. c5 {[%clk 0:00:32.5]} 28... bxc5 {[%clk 0:01:00.9]} 29. Nxc5
{[%clk 0:00:32.8]} 29... Nxc5 {[%clk 0:01:00.4]} 30. Rxc5 {[%clk 0:00:33.7]}
30... Qb7 {[%clk 0:00:59.3]} 31. Rdc1 {[%clk 0:00:30.7]} 31... Nd5 {[%clk
0:00:57.1]} 32. Ne4 {[%clk 0:00:27]} 32... Nf4 {[%clk 0:00:54.6]} 33. Qf3 {[%clk
0:00:21.5]} 33... Rxc5 {[%clk 0:00:50.1]} 34. Rxc5 {[%clk 0:00:15.7]} 34... Nd3
{[%clk 0:00:48.5]} 35. Nf6+ {[%clk 0:00:15]} 35... gxf6 {[%clk 0:00:48.6]} 36.
Qxb7 {[%clk 0:00:15.6]} 36... Kg7 {[%clk 0:00:43.7]} 37. f3 {[%clk 0:00:14.1]}
37... Nf4 {[%clk 0:00:43.2]} 38. Rc1 {[%clk 0:00:13.1]} 38... Ne2+ {[%clk
0:00:42.7]} 39. Kh2 {[%clk 0:00:13.4]} 39... Nxc1 {[%clk 0:00:43.6]} 40. Qc7
{[%clk 0:00:13.4]} 40... Rd1 {[%clk 0:00:44]} 41. Qxa7 {[%clk 0:00:12.6]} 41...
Nd3 {[%clk 0:00:43.5]} 42. b5 {[%clk 0:00:12.4]} 42... Nf4 {[%clk 0:00:28.1]}
43. b6 {[%clk 0:00:12.4]} 43... Rd2 {[%clk 0:00:25.2]} 44. b7 {[%clk 0:00:12.6]}
44... Rxg2+ {[%clk 0:00:24.1]} 45. Kh1 {[%clk 0:00:13]} 45... Rd2 {[%clk
0:00:16]} 46. b8=Q {[%clk 0:00:11.8]} 46... Nxh5 {[%clk 0:00:16.3]} 47. Qg1+
{[%clk 0:00:10.6]} 47... Kh7 {[%clk 0:00:12.5]} 48. Qgg8# {[%clk 0:00:10.5]} 1-0

[Event "Early-Titled-Tuesday-Blitz-October-10-2023"]
[Site "Chess.com"]
[Date "2023.10.10"]
[Round "1"]
[White "MikaelyanArman"]
[Black "noblerone"]
[Result "1-0"]
[WhiteElo "2832"]
[BlackElo "2468"]
[TimeControl "180+1"]
[EndTime "8:07:50 PDT"]
[Termination "MikaelyanArman won by checkmate"]

1. d4 {[%clk 0:02:58.5]} 1... d5 {[%clk 0:02:58.8]} 2. c4 {[%clk 0:02:58.6]}
2... c6 {[%clk 0:02:59.3]} 3. Nf3 {[%clk 0:02:58.9]} 3... Nf6 {[%clk 0:02:59.9]}
4. Nc3 {[%clk 0:02:59.5]} 4... dxc4 {[%clk 0:03:00.1]} 5. e4 {[%clk 0:02:58.4]}
5... b5 {[%clk 0:02:59.8]} 6. Be2 {[%clk 0:02:59]} 6... b4 {[%clk 0:02:56.2]} 7.
Na4 {[%clk 0:02:58.2]} 7... Nxe4 {[%clk 0:02:54.9]} 8. Bxc4 {[%clk 0:02:58.6]}
8... e6 {[%clk 0:02:55.4]} 9. O-O {[%clk 0:02:59.2]} 9... Be7 {[%clk 0:02:54.7]}
10. Qe2 {[%clk 0:02:57.1]} 10... Nf6 {[%clk 0:02:54.6]} 11. Rd1 {[%clk
0:02:57.7]} 11... O-O {[%clk 0:02:54.2]} 12. Ne5 {[%clk 0:02:57.7]} 12... Nd5
{[%clk 0:02:52.5]} 13. Nc5 {[%clk 0:02:57.2]} 13... Bxc5 {[%clk 0:02:26.8]} 14.
dxc5 {[%clk 0:02:58.1]} 14... Bd7 {[%clk 0:02:27.6]} 15. Bd3 {[%clk 0:02:46.6]}
15... Be8 {[%clk 0:02:21]} 16. Qe4 {[%clk 0:02:44.6]} 16... f5 {[%clk
0:02:17.9]} 17. Qe2 {[%clk 0:02:39.3]} 17... Qh4 {[%clk 0:02:11.9]} 18. Nf3
{[%clk 0:02:28.4]} 18... Qf6 {[%clk 0:02:06.8]} 19. Bg5 {[%clk 0:02:29]} 19...
Qg6 {[%clk 0:02:07.1]} 20. h4 {[%clk 0:01:40.7]} 20... Nd7 {[%clk 0:02:03.7]}
21. Ne5 {[%clk 0:01:12.5]} 21... Nxe5 {[%clk 0:01:55.4]} 22. Qxe5 {[%clk
0:01:13.4]} 22... Bd7 {[%clk 0:01:55.1]} 23. Bc4 {[%clk 0:01:05.7]} 23... h6
{[%clk 0:01:50.9]} 24. Bd2 {[%clk 0:01:00.6]} 24... Qg4 {[%clk 0:01:39.9]} 25.
Rac1 {[%clk 0:00:45.9]} 25... Qxh4 {[%clk 0:01:33.3]} 26. Bxb4 {[%clk
0:00:42.2]} 26... Rf7 {[%clk 0:00:54]} 27. Rd4 {[%clk 0:00:37.9]} 27... Qg5
{[%clk 0:00:53]} 28. Bd2 {[%clk 0:00:37.2]} 28... Qg6 {[%clk 0:00:49.9]} 29. b4
{[%clk 0:00:34.8]} 29... a6 {[%clk 0:00:38.1]} 30. a4 {[%clk 0:00:34.9]} 30...
Kh8 {[%clk 0:00:28.9]} 31. Bf1 {[%clk 0:00:24]} 31... Kh7 {[%clk 0:00:20]} 32.
b5 {[%clk 0:00:24.2]} 32... axb5 {[%clk 0:00:20]} 33. axb5 {[%clk 0:00:24.5]}
33... cxb5 {[%clk 0:00:20.9]} 34. c6 {[%clk 0:00:25.1]} 34... Bc8 {[%clk
0:00:20.5]} 35. Bxb5 {[%clk 0:00:22.6]} 35... Ra3 {[%clk 0:00:18.5]} 36. c7
{[%clk 0:00:20.4]} 36... f4 {[%clk 0:00:16.4]} 37. Bf1 {[%clk 0:00:14.6]} 37...
Rf5 {[%clk 0:00:14.9]} 38. Qe4 {[%clk 0:00:14.5]} 38... Kh8 {[%clk 0:00:11.6]}
39. Rb1 {[%clk 0:00:12.6]} 39... Qg5 {[%clk 0:00:09.4]} 40. Rb8 {[%clk
0:00:12.1]} 40... Rf8 {[%clk 0:00:10.1]} 41. Rxc8 {[%clk 0:00:10.9]} 41... Rxc8
{[%clk 0:00:09.8]} 42. Qxe6 {[%clk 0:00:11.7]} 42... Raa8 {[%clk 0:00:08.4]} 43.
Rxd5 {[%clk 0:00:11.8]} 43... Qf6 {[%clk 0:00:07.2]} 44. Qxf6 {[%clk 0:00:11.8]}
44... gxf6 {[%clk 0:00:08.1]} 45. Bxf4 {[%clk 0:00:12.3]} 45... Kg7 {[%clk
0:00:08]} 46. g3 {[%clk 0:00:12.6]} 46... Ra7 {[%clk 0:00:07.4]} 47. Bh3 {[%clk
0:00:10.6]} 47... Rcxc7 {[%clk 0:00:07.3]} 48. Bxc7 {[%clk 0:00:11.2]} 48...
Rxc7 {[%clk 0:00:08.2]} 49. Rd7+ {[%clk 0:00:10.5]} 49... Rxd7 {[%clk
0:00:08.7]} 50. Bxd7 {[%clk 0:00:11.1]} 50... Kg6 {[%clk 0:00:08.7]} 51. Kg2
{[%clk 0:00:11.6]} 51... Kg5 {[%clk 0:00:09.3]} 52. Kh3 {[%clk 0:00:11.6]} 52...
f5 {[%clk 0:00:09.6]} 53. f4+ {[%clk 0:00:11.8]} 53... Kh5 {[%clk 0:00:10.1]}
54. Be8# {[%clk 0:00:11.6]} 1-0

[Event "Early-Titled-Tuesday-Blitz-October-10-2023"]
[Site "Chess.com"]
[Date "2023.10.10"]
[Round "1"]
[White "Maksimus1998"]
[Black "Irina_Mikhaylova"]
[Result "1-0"]
[WhiteElo "2610"]
[BlackElo "2303"]
[TimeControl "180+1"]
[EndTime "8:07:54 PDT"]
[Termination "Maksimus1998 won by resignation"]

1. d4 {[%clk 0:02:59.6]} 1... Nf6 {[%clk 0:02:54.2]} 2. Nf3 {[%clk 0:02:59.1]}
2... g6 {[%clk 0:02:54.4]} 3. Bg5 {[%clk 0:02:58]} 3... Bg7 {[%clk 0:02:54.4]}
4. Nbd2 {[%clk 0:02:57.6]} 4... d5 {[%clk 0:02:53.4]} 5. e3 {[%clk 0:02:56.7]}
5... O-O {[%clk 0:02:53.9]} 6. Be2 {[%clk 0:02:54.8]} 6... b6 {[%clk 0:02:51.1]}
7. O-O {[%clk 0:02:54.5]} 7... c5 {[%clk 0:02:51.5]} 8. c3 {[%clk 0:02:53.8]}
8... Ba6 {[%clk 0:02:51.7]} 9. a4 {[%clk 0:02:52.8]} 9... Bxe2 {[%clk
0:02:51.2]} 10. Qxe2 {[%clk 0:02:52.4]} 10... Nc6 {[%clk 0:02:51.8]} 11. Rfd1
{[%clk 0:02:51.5]} 11... Qc7 {[%clk 0:02:42]} 12. Bf4 {[%clk 0:02:40.2]} 12...
Qd7 {[%clk 0:02:34.1]} 13. Ne5 {[%clk 0:02:34.4]} 13... Nxe5 {[%clk 0:02:33.5]}
14. Bxe5 {[%clk 0:02:35.3]} 14... Rac8 {[%clk 0:02:17.1]} 15. dxc5 {[%clk
0:02:32.1]} 15... Rxc5 {[%clk 0:01:55.9]} 16. Bxf6 {[%clk 0:02:28.9]} 16... Bxf6
{[%clk 0:01:56.2]} 17. Ne4 {[%clk 0:02:28.7]} 17... Rc6 {[%clk 0:01:56.5]} 18.
Nxf6+ {[%clk 0:02:28.2]} 18... Rxf6 {[%clk 0:01:56.5]} 19. a5 {[%clk 0:02:28.5]}
19... Rd6 {[%clk 0:01:37.8]} 20. axb6 {[%clk 0:02:26.4]} 20... axb6 {[%clk
0:01:38.1]} 21. Ra6 {[%clk 0:02:17]} 21... e5 {[%clk 0:01:32.2]} 22. h3 {[%clk
0:02:14.1]} 22... Rd8 {[%clk 0:01:31.3]} 23. Qg4 {[%clk 0:01:53.2]} 23... Qxg4
{[%clk 0:01:10.7]} 24. hxg4 {[%clk 0:01:54.1]} 24... Kg7 {[%clk 0:01:09.7]} 25.
g5 {[%clk 0:01:47.9]} 25... h6 {[%clk 0:01:08.6]} 26. gxh6+ {[%clk 0:01:47]}
26... Kxh6 {[%clk 0:01:08.9]} 27. Kf1 {[%clk 0:01:44.5]} 27... f5 {[%clk
0:01:05.3]} 28. Ke2 {[%clk 0:01:43.5]} 28... Kg5 {[%clk 0:01:05.7]} 29. g3
{[%clk 0:01:36.9]} 29... Kf6 {[%clk 0:01:04.7]} 30. Rh1 {[%clk 0:01:32.5]} 30...
R8d7 {[%clk 0:00:56.8]} 31. Rh8 {[%clk 0:01:31.9]} 31... Rb7 {[%clk 0:00:56.8]}
32. Rf8+ {[%clk 0:01:28]} 32... Ke7 {[%clk 0:00:54.6]} 33. Raa8 {[%clk
0:01:24.3]} 33... Kd7 {[%clk 0:00:49.8]} 34. Rad8+ {[%clk 0:01:22.9]} 34... Kc6
{[%clk 0:00:50.1]} 35. Rxd6+ {[%clk 0:01:23]} 35... Kxd6 {[%clk 0:00:49.8]} 36.
Rf6+ {[%clk 0:01:23]} 36... Kc5 {[%clk 0:00:50.4]} 37. Rxg6 {[%clk 0:01:23.3]}
37... d4 {[%clk 0:00:50.4]} 38. cxd4+ {[%clk 0:01:21.1]} 38... exd4 {[%clk
0:00:50.7]} 39. Rf6 {[%clk 0:01:21.4]} 39... dxe3 {[%clk 0:00:50.1]} 40. Rxf5+
{[%clk 0:01:20]} 40... Kc4 {[%clk 0:00:50.5]} 41. Kxe3 {[%clk 0:01:19.5]} 41...
b5 {[%clk 0:00:49.6]} 42. Kd2 {[%clk 0:01:00.1]} 42... Rd7+ {[%clk 0:00:41.3]}
43. Kc2 {[%clk 0:00:59.8]} 43... Re7 {[%clk 0:00:32.7]} 44. Rf4+ {[%clk
0:00:59.4]} 44... Kc5 {[%clk 0:00:33.1]} 45. Kc3 {[%clk 0:00:57.5]} 45... Re2
{[%clk 0:00:30]} 46. Rf5+ {[%clk 0:00:57.4]} 46... Kc6 {[%clk 0:00:30]} 47. g4
{[%clk 0:00:57.4]} 47... b4+ {[%clk 0:00:28.5]} 48. Kxb4 {[%clk 0:00:55.5]}
48... Rxb2+ {[%clk 0:00:28.5]} 49. Kc3 {[%clk 0:00:55.9]} 49... Ra2 {[%clk
0:00:26.2]} 50. Kd3 {[%clk 0:00:52.9]} 50... Kd6 {[%clk 0:00:26.5]} 51. g5
{[%clk 0:00:50.9]} 51... Ke6 {[%clk 0:00:22.8]} 52. Rf6+ {[%clk 0:00:51.1]}
52... Ke7 {[%clk 0:00:22.7]} 53. f4 {[%clk 0:00:49.1]} 53... Ra4 {[%clk
0:00:21.3]} 54. Ke3 {[%clk 0:00:49]} 54... Rb4 {[%clk 0:00:21.4]} 55. Kf3 {[%clk
0:00:49.5]} 55... Rc4 {[%clk 0:00:20.3]} 56. Kg4 {[%clk 0:00:49.9]} 56... Rc1
{[%clk 0:00:20.1]} 57. Ra6 {[%clk 0:00:48.5]} 57... Rc5 {[%clk 0:00:19.2]} 58.
f5 {[%clk 0:00:45.5]} 58... Kf7 {[%clk 0:00:18.2]} 59. Ra7+ {[%clk 0:00:45.2]}
59... Kg8 {[%clk 0:00:18.7]} 60. g6 {[%clk 0:00:43.8]} 60... Rb5 {[%clk
0:00:15.4]} 61. Kg5 {[%clk 0:00:43.5]} 61... Rb8 {[%clk 0:00:13.7]} 62. f6
{[%clk 0:00:37.9]} 62... Rb5+ {[%clk 0:00:13.2]} 63. Kh6 {[%clk 0:00:37.3]}
63... Rb8 {[%clk 0:00:13.8]} 64. Rg7+ {[%clk 0:00:35.1]} 64... Kh8 {[%clk
0:00:13.8]} 65. Rh7+ {[%clk 0:00:35.2]} 65... Kg8 {[%clk 0:00:14.3]} 66. f7+
{[%clk 0:00:35.5]} 1-0